bitfinex/quotes_ETHUSD_20220310
["timestamp","ask_amount","ask_price","bid_price","bid_amount"]
[1646934468846,0.05372087,2605.8,2605.3,1.463]
[1646934469249,0.05372087,2605.8,2605.3,0.463]
[1646934469446,0.05756754,2605.7,2605.3,0.463]
[1646934469645,0.03959938,2605.8,2605.5,1.08121235]
[1646934469946,0.03959938,2605.8,2605.6,0.95962]
[1646934470146,0.03959938,2605.8,2605.6,13.21262]
[1646934470347,0.03959938,2605.8,2605.6,1.42262]
[1646934470548,0.03959938,2605.8,2605.6,2.42262]
[1646934470745,0.03959938,2605.8,2605.6,1.42262]
[1646934472090,0.03959938,2605.8,2605.6,0.463]
[1646934472489,0.03959938,2605.8,2605.4,1.91893]
[1646934472689,0.03959938,2605.8,2605.4,2.91893]
[1646934472990,0.03959938,2605.8,2605.4,1.91893]
[1646934473189,0.00393583,2605.7,2605.4,2.91893]
[1646934473390,0.00393583,2605.7,2605.4,1.91893]
[1646934474193,0.03959938,2605.8,2605.4,1.91893]
[1646934474694,0.00393586,2605.7,2605.4,1.91893]
[1646934475338,0.03959938,2605.8,2605.4,1.91893]
[1646934475540,0.00393586,2605.7,2605.4,1.91893]
[1646934476539,0.00393586,2605.7,2605.1,0.25]
[1646934476540,0.05825685,2605.7,2604.9,2.91977]
[1646934476740,0.3864,2605.6,2604.9,1.91977]
[1646934476943,0.05770361,2605.6,2604.9,2.91977]
[1646934477140,0.05770361,2605.6,2604.9,1.91977]
[1646934477539,0.05770361,2605.6,2604.9,2.89864971]
[1646934477740,0.959999,2605.5,2604.9,2.89864971]
[1646934477941,0.05553644,2605.4,2604.9,2.89864971]
[1646934478140,0.05553644,2605.4,2604.9,1.91977]
[1646934478340,0.05553644,2605.4,2604.8,1.91991]
[1646934478341,3.8864,2605.4,2604.8,1.91991]
[1646934478539,0.05101664,2605.3,2604.8,1.91991]
[1646934479390,0.05101664,2605.3,2604.6,0.25]
[1646934479594,0.3864,2605.2,2604.6,0.25]
[1646934479791,0.05026358,2605.1,2604.6,0.25]
[1646934481092,0.05026358,2605.1,2604.7,0.96002]
[1646934481292,0.01544737,2605.4,2604.7,1.42302]
[1646934481493,0.06123742,2605.5,2604.9,0.87808655]
[1646934481692,0.0145706,2605.4,2604.9,0.87808655]
[1646934482393,0.0145706,2605.4,2605.0,0.95992]
[1646934482637,0.06123742,2605.5,2605.0,0.95992]
[1646934482836,0.06488013,2605.5,2605.0,0.95992]
[1646934483841,0.06123742,2605.5,2605.0,0.95992]
[1646934484040,0.06488022,2605.5,2605.0,0.95992]
[1646934485041,0.06123742,2605.5,2605.0,0.95992]
[1646934485241,0.06491228,2605.5,2605.0,0.95992]
[1646934486144,0.06123742,2605.5,2605.0,0.95992]
[1646934486589,0.06491228,2605.5,2605.0,0.95992]
[1646934487590,0.06123742,2605.5,2605.0,0.95992]
[1646934487798,0.06491228,2605.5,2605.0,0.95992]
[1646934488191,0.06491228,2605.5,2605.3,0.89616333]
[1646934488394,0.06491228,2605.5,2605.0,1.42292]
[1646934488395,0.79217836,2605.2,2605.0,1.42292]
[1646934489396,0.79217836,2605.2,2605.0,2.37264202]
[1646934491334,0.79217836,2605.2,2605.0,1.42292]
[1646934492534,0.79217836,2605.2,2605.0,2.41827736]
[1646934494389,0.79217836,2605.2,2605.0,1.42292]
[1646934494793,0.05541458,2605.1,2604.6,2.17]
[1646934494992,0.05541458,2605.1,2604.6,1.92]
[1646934496187,0.05541458,2605.1,2604.4,1.92015]
[1646934496399,1.58319879,2605.0,2604.0,0.31473342]
[1646934496592,3.55536686,2604.9,2604.0,0.31473342]
[1646934496793,1.64594159,2604.8,2604.0,0.96029]
[1646934496993,0.06137231,2604.7,2604.0,0.96029]
[1646934497194,0.06137231,2604.7,2604.0,1.95353211]
[1646934497646,0.0579986,2604.9,2604.0,1.95353211]
[1646934497840,0.0579986,2604.9,2604.0,13.99353211]
[1646934498045,0.0579986,2604.9,2604.3,0.96013]
[1646934498444,0.0579986,2604.9,2604.2,1.92026]
[1646934498445,1.0182343,2604.9,2604.2,1.92026]
[1646934498645,0.05891938,2604.8,2604.2,1.92026]
[1646934499052,0.05891938,2604.8,2604.3,3.5]
[1646934499246,0.01473553,2605.0,2604.2,13.71026]
[1646934499446,0.05195542,2605.1,2604.2,13.96026]
[1646934499649,1.5831719,2605.0,2604.3,3.5]
[1646934499849,0.01497106,2605.0,2604.4,11.79]
[1646934500046,0.01497106,2605.0,2604.5,15.753]
[1646934500248,0.01497106,2605.0,2604.7,0.96006]
[1646934500448,0.01497106,2605.0,2604.5,1.463]
[1646934500649,0.05195542,2605.1,2604.5,0.463]
[1646934501697,1.58308495,2605.0,2604.5,0.463]
[1646934502502,0.05101648,2604.8,2604.6,0.96011]
[1646934502703,0.3864,2605.1,2604.6,0.96011]
[1646934502908,0.06072836,2604.9,2604.6,0.96011]
[1646934503702,1.58312465,2604.8,2604.6,0.96011]
[1646934504105,0.3864,2605.1,2604.6,0.96011]
[1646934504306,0.05628967,2604.9,2604.6,0.96011]
[1646934504506,1.58312534,2604.8,2604.6,0.96011]
[1646934504704,0.05205301,2605.0,2604.6,0.96011]
[1646934504906,1.58313311,2604.9,2604.6,0.96011]
[1646934505170,0.055279,2604.8,2604.6,0.96011]
[1646934505370,0.05325574,2605.0,2604.6,0.96011]
[1646934505574,0.05156266,2604.8,2604.4,2.92004]
[1646934505973,1.58316129,2604.7,2604.4,2.92004]
[1646934506174,1.58316129,2604.7,2604.4,1.92004]
[1646934511302,1.58316129,2604.7,2604.2,4.12766434]
[1646934511303,0.05043379,2604.6,2604.2,4.12766434]
[1646934511506,0.05043379,2604.6,2604.2,2.92029]
[1646934511702,1.58327722,2604.5,2604.2,1.92029]
[1646934511904,0.04810915,2604.4,2603.7,1.0]
[1646934512109,1.58327722,2604.3,2603.4,0.06747103]
[1646934512303,1.58327722,2604.3,2603.5,0.96047]
[1646934512304,0.960498,2604.2,2603.5,0.96047]
[1646934512547,0.0606344,2604.1,2603.5,0.96047]
[1646934512748,1.58360994,2604.0,2603.2,1.57038721]
[1646934512948,1.58360994,2604.0,2603.4,0.00152555]
[1646934512949,0.44511653,2603.9,2603.4,0.00152555]
[1646934513150,0.06090263,2603.7,2603.4,0.00152555]
[1646934513352,1.02170363,2603.7,2603.4,0.00152555]
[1646934513548,0.05950919,2603.6,2603.4,0.00152555]
[1646934513748,0.05950919,2603.6,2603.4,1.13011106]
[1646934514353,0.192,2604.2,2603.4,1.13011106]
[1646934514354,0.04787919,2604.1,2603.4,1.13011106]
[1646934514555,0.06163735,2604.3,2603.5,0.96043]
[1646934514752,1.5476,2604.4,2603.5,1.21043]
[1646934514753,0.05511127,2604.1,2603.5,1.21043]
[1646934514952,0.05315868,2604.3,2603.5,1.21043]
[1646934515153,0.05381214,2604.1,2603.5,1.21043]
[1646934515353,1.5476,2604.4,2603.8,0.99964933]
[1646934515554,2.54390625,2604.3,2603.8,0.99964933]
[1646934515757,0.05884501,2604.2,2603.8,0.99964933]
[1646934516057,0.05884501,2604.2,2603.5,1.21043]
[1646934516302,1.58348914,2604.1,2603.5,0.25]
[1646934516492,0.05884501,2604.2,2603.5,0.25]
[1646934516696,0.9604982,2604.1,2603.5,0.25]
[1646934516897,0.05884501,2604.2,2603.5,0.25]
[1646934517097,0.05884501,2604.2,2604.0,0.99783592]
[1646934517296,0.06028731,2604.5,2604.0,0.99783592]
[1646934517497,1.58346072,2604.4,2603.3,6.19126633]
[1646934517697,0.05313806,2604.3,2603.5,0.96044]
[1646934517899,0.05313806,2604.3,2603.4,0.00394283]
[1646934517900,0.9604803,2604.1,2603.4,0.00394283]
[1646934518704,1.64551694,2604.0,2603.2,1.92086]
[1646934518899,1.64551694,2604.0,2603.1,0.463]
[1646934518900,0.9606353,2603.8,2603.1,0.463]
[1646934519103,0.9606353,2603.8,2603.4,0.0036073]
[1646934519703,0.0614718,2603.7,2603.4,0.0036073]
[1646934519903,0.0614718,2603.7,2603.2,1.23420263]
[1646934520146,0.0614718,2603.7,2603.4,0.00364233]
[1646934521147,0.0614718,2603.7,2602.8,0.96071]
[1646934521356,0.0614718,2603.7,2603.0,1.10639107]
[1646934521646,1.9829588,2603.7,2603.4,0.00364229]
[1646934521846,0.05918028,2603.6,2603.4,0.00364229]
[1646934522448,1.01991688,2603.6,2602.7,0.25]
[1646934522651,1.921487,2603.7,2603.4,0.00363866]
[1646934522652,0.06163375,2603.5,2603.4,0.00363866]
[1646934523651,0.9607996,2603.4,2603.0,1.03510056]
[1646934523908,0.9607996,2603.4,2603.3,0.00363869]
[1646934524701,0.9607996,2603.4,2602.6,0.06469159]
[1646934524900,0.9608074,2603.3,2602.6,0.06469159]
[1646934525102,0.9608074,2603.3,2603.2,0.00363651]
[1646934525903,0.9608074,2603.3,2603.0,1.19964789]
[1646934526303,0.9608074,2603.3,2603.1,0.00364015]
[1646934526506,0.9607397,2603.4,2603.1,0.00364015]
[1646934527104,0.9607397,2603.4,2603.0,1.19964789]
[1646934527403,0.9607397,2603.4,2603.1,0.00364015]
[1646934528445,0.9607397,2603.4,2602.8,0.96072]
[1646934528647,0.9607397,2603.4,2603.1,0.003639]
[1646934529650,1.3471397,2603.4,2602.9,1.14467796]
[1646934529849,2.113487,2603.7,2603.1,0.00351887]
[1646934530150,0.192,2603.7,2603.1,0.00351887]
[1646934530348,6.6716,2603.8,2603.1,0.00351887]
[1646934530754,6.4796,2603.8,2602.9,1.60767796]
[1646934530951,6.866,2603.8,2603.3,0.00351879]
[1646934531153,0.3864,2603.7,2603.3,0.00351879]
[1646934531891,0.3864,2603.7,2602.5,3.5]
[1646934531892,0.192,2603.6,2602.5,3.5]
[1646934532089,0.192,2603.6,2602.2,3.20778721]
[1646934532090,0.9608756,2603.3,2602.2,2.74478721]
[1646934532290,0.9608756,2603.3,2602.1,4.50812374]
[1646934532291,2.5238756,2603.3,2602.5,0.87254332]
[1646934532895,2.52245554,2603.3,2602.5,0.87254332]
[1646934533094,1.563,2603.3,2602.5,0.87254332]
[1646934533496,1.563,2603.3,2602.8,0.00336739]
[1646934534497,0.3864,2603.1,2602.0,1.1744]
[1646934534698,0.3864,2603.1,2602.9,0.00336732]
[1646934535051,0.192,2603.0,2602.9,0.00336732]
[1646934535651,0.3864,2602.8,2602.1,1.16191585]
[1646934535850,1.347547,2602.8,2602.1,1.16191585]
[1646934536649,0.05134161,2602.7,2602.1,1.16191585]
[1646934537051,0.05134161,2602.7,2602.3,0.00339523]
[1646934537951,0.05134161,2602.7,2602.1,1.16191585]
[1646934538151,0.25415866,2603.0,2602.1,1.16191585]
[1646934538350,0.25415866,2603.0,2602.4,0.00339521]
[1646934538552,0.05260319,2603.2,2602.4,0.00339521]
[1646934538995,0.05260319,2603.2,2602.8,0.89598566]
[1646934539398,0.05260319,2603.2,2602.7,0.00126834]
[1646934540394,0.05260319,2603.2,2602.6,1.17522376]
[1646934540395,1.01356699,2603.2,2602.6,1.17522376]
[1646934540595,0.05377668,2603.0,2602.8,0.0012648]
[1646934541397,0.24577668,2603.0,2602.8,0.0012648]
[1646934541596,0.24577668,2603.0,2602.0,1.424]
[1646934541795,0.24577668,2603.0,2602.8,0.00126483]
[1646934542001,0.05377668,2603.0,2602.8,0.00126483]
[1646934542846,0.05377668,2603.0,2602.2,0.96097]
[1646934543043,0.05377668,2603.0,2602.8,0.00369013]
[1646934543744,0.00390364,2602.7,2602.3,0.94556315]
[1646934545746,0.00390364,2602.7,2602.3,1.19556315]
[1646934546990,0.00390364,2602.7,2602.3,2.15648315]
[1646934547591,0.00390364,2602.7,2602.5,0.07458224]
[1646934548996,0.0497102,2602.7,2602.5,0.07852933]
[1646934549197,1.1766,2603.3,2602.6,1.81019]
[1646934549398,0.05596141,2603.5,2602.8,0.07585921]
[1646934549598,0.05596141,2603.5,2602.9,0.463]
[1646934549799,0.05596141,2603.5,2603.0,3.5]
[1646934550056,0.05596141,2603.5,2603.1,0.463]
[1646934551544,0.05596141,2603.5,2603.2,0.9981337]
[1646934555296,0.00381569,2603.7,2603.3,0.45090946]
[1646934555498,0.00381569,2603.7,2603.4,0.33146978]
[1646934555897,1.58380443,2603.8,2603.4,0.33146978]
[1646934556097,4.1704,2604.1,2603.4,0.33146978]
[1646934556098,1.58380443,2603.7,2603.4,0.33146978]
[1646934556313,1.58380443,2603.7,2603.6,0.87714584]
[1646934556314,0.00366506,2603.7,2603.6,0.87714584]
[1646934557099,1.58741141,2603.7,2603.6,0.87714584]
[1646934557298,1.2399,2604.2,2603.6,0.87714584]
[1646934557563,0.00366507,2603.8,2603.6,0.87714584]
[1646934557750,0.00366507,2603.8,2603.7,3.8864]
[1646934557950,0.00366507,2603.8,2603.7,13.68064817]
[1646934558149,0.00366507,2603.8,2603.7,14.68064817]
[1646934558448,1.58338812,2604.5,2603.8,0.07619074]
[1646934558650,1.58338812,2604.5,2603.9,0.463]
[1646934558853,1.58338812,2604.5,2603.9,0.713]
[1646934559053,1.58338812,2604.5,2603.9,1.97335]
[1646934559553,1.58338812,2604.5,2604.1,1.11999947]
[1646934559954,0.00335998,2604.3,2604.1,1.11999947]
[1646934560757,1.58338812,2604.5,2604.1,1.11999947]
[1646934561303,0.00335998,2604.3,2604.1,1.11999947]
[1646934561507,2.80865751,2604.6,2604.1,1.11999947]
[1646934561803,0.05695751,2604.6,2604.1,1.11999947]
[1646934562003,1.23693789,2604.7,2604.1,1.66639317]
[1646934562004,1.2235,2604.7,2604.1,1.66639317]
[1646934562303,1.2235,2604.7,2604.1,0.463]
[1646934562304,0.0417675,2604.6,2604.1,0.463]
[1646934562502,0.0417675,2604.6,2603.9,0.25]
[1646934562707,0.2335675,2604.6,2603.9,0.25]
[1646934563103,0.9433075,2604.6,2603.9,0.25]
[1646934563303,0.9605282,2604.5,2603.9,0.25]
[1646934563504,0.05133118,2604.3,2603.9,0.25]
[1646934563906,0.04778007,2604.5,2603.9,0.25]
[1646934564808,0.00243295,2604.4,2603.9,0.25]
[1646934565054,0.00243295,2604.4,2603.5,2.38379]
[1646934565247,0.19443295,2604.4,2603.5,2.38379]
[1646934565741,0.192,2604.4,2603.5,2.38379]
[1646934565941,0.19304881,2604.4,2603.5,1.92079]
[1646934566143,0.19304881,2604.4,2603.6,1.15699288]
[1646934566642,0.19304881,2604.4,2603.7,0.96043]
[1646934566643,0.1906161,2604.4,2603.7,0.96043]
[1646934566841,0.1906161,2604.4,2603.7,1.03393215]
[1646934567042,0.0039491,2604.4,2603.7,1.03393215]
[1646934567444,0.0039491,2604.4,2604.1,0.92571638]
[1646934568044,0.04778007,2604.5,2604.1,0.92571638]
[1646934568245,0.00394933,2604.4,2604.1,0.92571638]
[1646934569296,0.04778007,2604.5,2604.1,0.92571638]
[1646934569496,0.00394933,2604.4,2604.1,0.92571638]
[1646934569697,0.00394933,2604.4,2604.1,0.92460791]
[1646934569899,0.00394933,2604.4,2603.7,2.99413215]
[1646934570500,0.04778007,2604.5,2603.7,2.99413215]
[1646934570697,0.04778007,2604.5,2603.7,1.99413215]
[1646934570897,0.04778007,2604.5,2603.7,4.10299072]
[1646934571507,0.04778007,2604.5,2603.7,1.92063]
[1646934571698,0.192,2604.4,2603.4,0.3256149]
[1646934571898,0.3864,2604.3,2603.4,0.25]
[1646934572099,0.04452272,2604.2,2603.4,0.25]
[1646934572298,0.3864,2604.1,2603.4,0.25]
[1646934572555,0.05259681,2604.0,2603.4,0.25]
[1646934572741,0.9607362,2603.9,2603.4,0.25]
[1646934573947,0.9607362,2603.9,2603.2,0.87505325]
[1646934574346,0.9607362,2603.9,2603.3,0.00388097]
[1646934575147,0.9607362,2603.9,2603.2,0.87505325]
[1646934575347,0.9607362,2603.9,2603.3,0.00366489]
[1646934575548,1.01335681,2604.0,2603.3,0.00366489]
[1646934575753,0.05259681,2604.0,2603.3,0.00366489]
[1646934576394,0.05259681,2604.0,2603.2,1.12505325]
[1646934576592,0.05259681,2604.0,2603.3,0.00366494]
[1646934576792,0.05259681,2604.0,2603.6,0.95449622]
[1646934580240,1.2418,2604.1,2603.6,0.95449622]
[1646934581554,0.34183532,2604.0,2603.7,3.5]
[1646934581746,3.60363148,2604.4,2603.7,1.463]
[1646934581747,2.89389148,2604.4,2603.7,1.463]
[1646934581944,0.00369148,2604.4,2603.8,0.71091764]
[1646934582145,0.00369148,2604.4,2603.9,12.6394]
[1646934582344,0.70974,2604.8,2604.0,0.08677736]
[1646934582545,10.60294,2604.9,2604.1,0.463]
[1646934582744,0.01476578,2604.6,2604.5,0.95838789]
[1646934582949,0.73039867,2604.3,2604.2,0.98578456]
[1646934583152,0.73039867,2604.3,2604.2,1.44878456]
[1646934585101,0.73039867,2604.3,2604.2,13.23878456]
[1646934585298,0.73039867,2604.3,2604.2,2.74878456]
[1646934585598,0.73039867,2604.3,2604.2,2.36636907]
[1646934585798,0.73039867,2604.3,2604.2,1.36636907]
[1646934586398,0.73039867,2604.3,2604.2,0.463]
[1646934586622,0.73039867,2604.3,2604.0,1.0]
[1646934586799,0.73039867,2604.3,2603.8,1.67336]
[1646934587005,0.73039867,2604.3,2603.9,0.96036]
[1646934587403,0.73039867,2604.3,2604.0,1.18130196]
[1646934587655,0.73039867,2604.3,2603.7,1.92061]
[1646934587656,0.77533367,2604.3,2603.7,1.92061]
[1646934588053,0.77533367,2604.3,2603.7,2.17061]
[1646934589058,0.77533367,2604.3,2603.9,0.91330628]
[1646934589358,0.77533367,2604.3,2603.7,2.17061]
[1646934590159,0.77533367,2604.3,2603.8,1.92074]
[1646934590659,0.77533367,2604.3,2603.7,3.17061]
[1646934591401,0.77533367,2604.3,2604.2,0.91998283]
[1646934594203,0.73039867,2604.3,2604.2,0.91998283]
[1646934595542,0.73039867,2604.3,2603.7,3.47061]
[1646934596144,0.73039867,2604.3,2603.7,2.47061]
[1646934596546,0.78451548,2604.3,2603.7,2.47061]
[1646934596842,0.78451548,2604.3,2603.9,1.21134994]
[1646934597747,0.73039867,2604.3,2603.9,1.21134994]
[1646934598796,0.73039867,2604.3,2603.9,2.25564393]
[1646934599208,0.73039867,2604.3,2603.9,1.29535393]
[1646934599402,0.73039867,2604.3,2603.9,1.21134994]
[1646934601506,1.58030776,2604.2,2603.9,1.21134994]
[1646934604858,1.58030776,2604.2,2603.9,2.17169994]
[1646934605156,1.58030776,2604.2,2603.9,14.03556948]
[1646934605355,1.58030776,2604.2,2604.0,0.08272755]
[1646934605557,1.58030776,2604.2,2604.0,1.92044]
[1646934605758,1.58030776,2604.2,2604.1,0.0904474]
[1646934605958,1.58030776,2604.2,2604.1,0.5534474]
[1646934606157,1.58030776,2604.2,2604.1,0.8534474]
[1646934606400,1.58030776,2604.2,2604.1,0.763]
[1646934607501,1.58030776,2604.2,2604.1,13.51326]
[1646934607702,1.58030776,2604.2,2604.1,2.72326]
[1646934608103,1.58030776,2604.2,2604.1,1.72326]
[1646934608503,0.73039867,2604.3,2604.1,1.72326]
[1646934608703,0.73039867,2604.3,2604.2,11.79]
[1646934608904,2.30994103,2604.3,2604.2,12.253]
[1646934609107,2.30994103,2604.3,2604.2,13.253]
[1646934609304,0.73039867,2604.3,2604.2,13.253]
[1646934610146,0.73039867,2604.3,2604.2,1.463]
[1646934610345,0.73039867,2604.3,2604.2,0.463]
[1646934613249,0.73039867,2604.3,2604.2,12.6394]
[1646934613449,0.73039867,2604.3,2604.2,12.253]
[1646934613650,0.73039867,2604.3,2604.2,13.253]
[1646934614500,0.73039867,2604.3,2604.2,1.463]
[1646934614901,0.73039867,2604.3,2604.2,0.463]
[1646934615304,2.30838116,2604.3,2604.2,0.463]
[1646934616205,2.30838116,2604.3,2603.9,3.13169994]
[1646934616407,1.57798249,2604.2,2603.9,3.13169994]
[1646934616608,0.73039867,2604.3,2604.0,0.07916569]
[1646934616805,1.57595802,2604.2,2604.1,0.07916562]
[1646934617004,1.57595627,2604.2,2604.0,0.3]
[1646934617209,0.73039867,2604.3,2604.0,0.3]
[1646934617404,1.57601561,2604.2,2604.0,0.3]
[1646934617849,1.57608052,2604.1,2604.0,0.3]
[1646934618052,1.57608145,2604.2,2604.0,0.3791656]
[1646934618250,1.57607943,2604.1,2604.0,0.3]
[1646934618452,0.73039867,2604.3,2604.0,0.3]
[1646934618651,1.57625961,2604.2,2604.0,0.3]
[1646934618856,1.57625961,2604.2,2604.0,1.26024]
[1646934620857,1.57625961,2604.2,2604.1,0.08202171]
[1646934621897,1.57625961,2604.2,2604.0,0.3]
[1646934622296,1.57625961,2604.2,2603.9,4.43172994]
[1646934622600,1.57625961,2604.2,2603.9,5.39198994]
[1646934623195,1.57625961,2604.2,2603.9,5.09198994]
[1646934623598,1.57625961,2604.2,2604.0,0.07916602]
[1646934624805,5.07545308,2604.2,2604.0,0.07916602]
[1646934625058,5.07545308,2604.2,2603.7,0.25]
[1646934625059,0.05090104,2604.1,2603.7,0.25]
[1646934625253,0.15832578,2603.9,2603.7,0.25]
[1646934628350,0.15832578,2603.9,2603.7,1.21035]
[1646934629006,0.15832578,2603.9,2603.7,2.17063]
[1646934630412,0.15832578,2603.9,2603.7,2.47063]
[1646934630609,0.15832578,2603.9,2603.7,3.00915622]
[1646934630808,0.15832578,2603.9,2603.7,4.00915622]
[1646934631909,0.15832578,2603.9,2603.7,3.04887622]
[1646934632310,0.15832578,2603.9,2603.7,2.74887622]
[1646934633646,0.15832578,2603.9,2603.7,1.74887622]
[1646934633851,0.15832578,2603.9,2603.7,2.69887622]
[1646934634051,0.15832578,2603.9,2603.7,1.69887622]
[1646934634252,0.15832578,2603.9,2603.7,2.69887622]
[1646934634451,0.15832578,2603.9,2603.7,0.73852622]
[1646934634652,0.15832578,2603.9,2603.7,1.73852622]
[1646934634853,0.15832578,2603.9,2603.7,0.73852622]
[1646934636153,0.15832578,2603.9,2603.8,0.96034]
[1646934640350,0.15832578,2603.9,2603.7,1.663]
[1646934640552,0.15832578,2603.9,2603.7,0.663]
[1646934640757,0.15832578,2603.9,2603.7,0.2]
[1646934644908,1.57909882,2603.8,2603.7,0.2]
[1646934645506,1.57899962,2603.8,2603.7,0.27917311]
[1646934645706,0.15832578,2603.9,2603.7,0.27917311]
[1646934645911,1.57898826,2603.8,2603.7,0.2]
[1646934646308,1.57898826,2603.8,2603.7,0.27917347]
[1646934646509,0.15832578,2603.9,2603.7,0.27917347]
[1646934646708,1.57890903,2603.8,2603.7,0.2]
[1646934650665,5.46530903,2603.8,2603.7,0.27917922]
[1646934650863,5.46530903,2603.8,2603.2,0.25]
[1646934650864,0.36247928,2603.6,2603.2,0.25]
[1646934651069,5.07890903,2603.5,2603.3,0.00339774]
[1646934651299,5.07890903,2603.4,2603.3,0.00339774]
[1646934651998,5.07890903,2603.4,2602.8,5.44425221]
[1646934652198,1.57890903,2603.3,2602.8,5.44425221]
[1646934652397,3.5,2603.4,2603.2,0.00340881]
[1646934652598,0.3864,2603.5,2603.2,0.00340881]
[1646934652798,5.08381542,2603.4,2603.2,0.00340881]
[1646934652998,3.5,2603.4,2603.2,0.00340881]
[1646934653198,1.58383383,2603.3,2603.1,0.25]
[1646934653602,1.58383383,2603.3,2603.2,0.00340883]
[1646934654402,1.58383383,2603.3,2602.8,5.36879304]
[1646934654603,1.97023383,2603.3,2602.8,5.36879304]
[1646934654806,5.08383383,2603.2,2603.1,0.00340755]
[1646934655248,5.27583383,2603.2,2603.1,0.00340755]
[1646934655448,5.66223383,2603.2,2603.1,0.00340755]
[1646934655653,5.66223383,2603.2,2602.5,0.25]
[1646934655854,0.3864,2603.0,2602.5,0.25]
[1646934656055,0.3864,2602.8,2602.5,0.25]
[1646934657154,0.3864,2603.2,2602.6,0.96092]
[1646934657353,0.3864,2603.0,2602.6,0.96092]
[1646934657552,3.8864,2603.0,2602.6,0.96092]
[1646934657752,0.3864,2602.8,2602.6,0.96092]
[1646934658356,0.3864,2602.8,2602.7,0.00341256]
[1646934658800,0.5784,2603.3,2602.7,0.00341256]
[1646934659002,1.58270714,2603.2,2602.7,0.00341256]
[1646934659202,1.58270714,2603.2,2602.7,0.96087]
[1646934659402,1.58270714,2603.1,2602.7,0.96087]
[1646934659603,1.58270714,2603.1,2602.9,0.00341264]
[1646934659802,1.58270714,2603.3,2602.9,0.00341264]
[1646934660001,1.58228271,2603.2,2602.9,0.00341264]
[1646934660201,1.58228271,2603.1,2602.9,0.00341264]
[1646934660402,1.58228271,2603.1,2602.8,1.01355168]
[1646934660602,1.2223,2603.4,2602.8,1.01355168]
[1646934660803,1.58241165,2603.3,2602.9,0.00341262]
[1646934661003,0.05102018,2603.2,2602.9,0.00341262]
[1646934661202,1.58241165,2603.1,2602.9,0.00341262]
[1646934661605,0.05102018,2603.2,2602.8,1.97435168]
[1646934661906,0.05102018,2603.2,2602.9,0.00340606]
[1646934662563,0.05102018,2603.2,2602.9,0.46640606]
[1646934662751,0.50067925,2603.6,2603.0,0.96078]
[1646934662752,0.54284226,2603.6,2603.0,0.96078]
[1646934662950,1.58229909,2603.5,2603.0,0.96078]
[1646934663149,1.58229909,2603.5,2603.0,1.21078]
[1646934664153,0.0435263,2603.4,2603.0,1.21078]
[1646934664353,1.58229909,2603.3,2603.2,1.15762709]
[1646934664553,0.0435263,2603.4,2603.2,1.15762709]
[1646934665553,0.0435263,2603.4,2603.2,1.16103361]
[1646934666400,0.0435263,2603.4,2603.2,1.15762709]
[1646934666798,0.0435263,2603.4,2603.2,1.161034]
[1646934667801,0.0435263,2603.4,2603.2,1.15762709]
[1646934668003,0.0435263,2603.4,2603.2,0.00340691]
[1646934668004,1.58209781,2603.3,2603.2,0.00340691]
[1646934669006,1.58209781,2603.3,2603.2,0.04411344]
[1646934671870,1.58063397,2603.3,2603.2,0.04411344]
[1646934674205,0.04112461,2603.1,2602.5,0.5327575]
[1646934674408,0.04112461,2603.1,2602.4,0.25]
[1646934674604,0.09547067,2603.1,2602.4,0.25]
[1646934675504,0.09547067,2603.1,2602.6,1.07803579]
[1646934675707,0.9610002,2603.0,2602.6,1.07803579]
[1646934676507,0.09547067,2603.1,2602.6,1.07803579]
[1646934676709,0.04112461,2603.1,2602.6,1.07803579]
[1646934677558,0.04112461,2603.1,2602.7,0.00396023]
[1646934678555,0.04112461,2603.1,2602.6,1.07803579]
[1646934678755,0.04112461,2603.1,2602.8,0.0039602]
[1646934679358,0.04112461,2603.1,2602.8,0.02672792]
[1646934679758,0.04112461,2603.1,2602.8,0.02276772]
[1646934679958,0.04112461,2603.1,2602.8,0.02672789]
[1646934680861,0.04112461,2603.1,2602.8,0.02276772]
[1646934681064,0.08909407,2603.1,2602.8,0.02276772]
[1646934681299,2.20325497,2603.1,2602.8,0.02672789]
[1646934682111,0.9611,2603.0,2602.8,0.02276772]
[1646934682309,0.9611,2603.0,2602.8,0.02659423]
[1646934682907,0.05141497,2602.9,2602.8,0.02659423]
[1646934683307,0.05141497,2602.9,2602.8,0.02276772]
[1646934683709,0.05141497,2602.9,2602.8,0.02659426]
[1646934684409,0.05141497,2602.9,2602.8,0.00382654]
[1646934684410,0.24341497,2602.9,2602.8,0.00382654]
[1646934684612,0.24341497,2602.9,2602.4,0.25]
[1646934684613,0.96118,2602.8,2602.4,0.25]
[1646934684810,0.96118,2602.8,2602.7,0.00382657]
[1646934684811,1.9223491,2602.8,2602.7,0.00382657]
[1646934685259,2.3087491,2602.8,2602.7,2.657e-05]
[1646934685557,5.16463865,2602.8,2602.7,2.657e-05]
[1646934685755,5.16463865,2602.8,2601.8,0.634]
[1646934685756,2.3091388,2602.6,2601.8,0.634]
[1646934685957,0.96136,2602.3,2601.8,0.25]
[1646934686557,0.3864,2602.2,2601.8,0.25]
[1646934687459,0.96143,2602.1,2601.8,0.25]
[1646934687657,1.34783,2602.1,2601.8,0.25]
[1646934688907,3.2707137,2602.1,2601.8,0.25]
[1646934689403,3.2707137,2602.1,2601.3,0.25]
[1646934689404,0.96151,2601.9,2601.3,0.25]
[1646934689607,1.34791,2601.9,2601.8,0.00396075]
[1646934689810,8.20450141,2601.9,2601.2,0.0191668]
[1646934690005,1.5821,2601.8,2601.2,0.0191668]
[1646934690205,3.5054916,2601.8,2601.2,0.0191668]
[1646934690405,15.2954916,2601.8,2601.2,0.0191668]
[1646934690906,4.68906094,2601.8,2601.2,0.0191668]
[1646934691108,0.96168,2601.5,2601.2,0.0191668]
[1646934691409,1.1957,2601.8,2601.2,0.0191668]
[1646934692411,1.57801275,2601.7,2601.2,0.0191668]
[1646934692855,1.1957,2601.8,2601.2,0.0191668]
[1646934694261,0.9615076,2601.7,2601.4,0.00396101]
[1646934694862,0.9615076,2601.7,2601.4,0.04497233]
[1646934695264,0.9615076,2601.7,2601.4,0.04101132]
[1646934695464,1.1957,2601.8,2601.4,0.0449723]
[1646934696505,1.1966936,2602.2,2601.4,0.50401132]
[1646934696702,1.57713539,2602.1,2601.8,1.06737958]
[1646934696901,1.57713539,2602.1,2601.6,1.1256691]
[1646934696902,0.62298931,2601.7,2601.6,1.1256691]
[1646934699810,0.62298931,2601.7,2601.6,0.03901151]
[1646934704305,1.00938931,2601.7,2601.6,0.03901151]